bitfinex-derivatives/quotes_BNBF0:USTF0_20260110
["timestamp","ask_amount","ask_price","bid_price","bid_amount"]
[1768074350330,0.19002064,916.19,914.86,0.68259238]
[1768074350531,0.19002064,916.19,914.87,0.68259238]
[1768074350725,0.19002064,916.19,914.88,0.68259238]
[1768074350927,0.19002064,916.19,914.89,0.68259238]
[1768074351126,0.19002064,916.19,914.9,0.68259238]
[1768074351430,0.19002064,916.19,914.91,0.68259238]
[1768074351724,0.19002064,916.19,914.92,0.68259238]
[1768074351929,0.19002064,916.19,914.93,0.68259238]
[1768074352130,0.19002064,916.19,914.94,0.68259238]
[1768074352426,0.19002064,916.19,914.95,0.68259238]
[1768074352624,0.19002064,916.19,914.96,0.68259238]
[1768074352828,0.19002064,916.19,914.97,0.68259238]
[1768074353026,0.19002064,916.19,914.98,0.68259238]
[1768074353224,0.19002064,916.19,914.99,0.68259238]
[1768074353525,0.19002064,916.19,915.0,0.68259238]
[1768074353725,0.19002064,916.19,915.01,0.68259238]
[1768074353925,0.19002064,916.19,915.02,0.68259238]
[1768074354130,0.19002064,916.19,915.03,0.68259238]
[1768074354329,0.19002064,916.19,915.04,0.68259238]
[1768074354530,0.19002064,916.19,915.05,0.68259238]
[1768074354730,0.19002064,916.19,915.06,0.68259238]
[1768074354931,0.19002064,916.19,915.07,0.68259238]
[1768074355229,0.19002064,916.19,915.08,0.68259238]
[1768074355427,0.19002064,916.19,915.09,0.68259238]
[1768074355628,0.19002064,916.19,915.1,0.68259238]
[1768074355832,0.19002064,916.19,915.11,0.68259238]
[1768074356027,0.19002064,916.19,914.87,0.80839746]
[1768074356028,0.19002064,916.19,915.12,0.68259238]
[1768074356226,0.19002064,916.19,915.13,0.68259238]
[1768074356428,0.19002064,916.19,915.14,0.68259238]
[1768074356632,0.19002064,916.19,913.42,0.81452086]
[1768074356831,2.72679797,917.33,912.11,2.7463628]
[1768074357032,2.72679797,915.66,912.11,2.7463628]
[1768074357232,8.64515659,915.66,912.21,2.7463628]
[1768074357531,5.91835862,915.66,912.98,0.00840058]
[1768074357730,0.96492223,915.65,912.98,0.00840058]
[1768074358031,2.72679797,915.45,911.91,2.7463628]
[1768074358231,0.96492223,915.44,912.07,0.01230624]
[1768074358431,0.96492223,915.43,912.07,0.01230624]
[1768074358735,0.96492223,915.42,911.87,2.7463628]
[1768074358935,0.96492223,915.41,911.87,2.7463628]
[1768074359231,0.96492223,915.4,911.83,2.7463628]
[1768074359431,0.96492223,915.39,911.88,2.215]
[1768074359629,0.96492223,915.38,911.88,2.215]
[1768074359832,0.96492223,915.37,911.88,2.215]
[1768074360035,0.96492223,915.36,911.88,2.215]
[1768074360236,0.96492223,915.35,911.88,2.215]
[1768074360433,0.96492223,915.34,911.88,2.215]
[1768074360634,0.96492223,915.33,911.88,2.215]
[1768074360831,0.96492223,915.32,911.88,2.215]
[1768074361031,0.96492223,915.31,911.88,2.215]
[1768074361234,0.96492223,915.3,911.88,2.215]
[1768074361433,0.96492223,915.29,911.88,2.215]
[1768074361634,0.96492223,915.28,911.88,2.215]
[1768074361838,0.96492223,915.27,911.88,2.215]
[1768074362039,0.96492223,915.26,911.88,2.215]
[1768074362335,0.96492223,915.25,911.88,2.215]
[1768074362535,0.96492223,915.24,911.88,2.215]
[1768074362740,0.96492223,915.23,911.88,2.215]
[1768074362936,0.96492223,915.22,911.88,2.215]
[1768074363134,0.96492223,915.21,911.88,2.215]
[1768074363439,2.72679797,915.61,911.88,2.215]
[1768074363440,0.96492223,915.2,911.88,2.215]
[1768074363636,0.96492223,915.19,911.88,2.215]
[1768074363840,0.96492223,915.18,911.88,2.215]
[1768074364040,0.96492223,915.17,911.88,2.215]
[1768074364237,0.96492223,915.16,911.88,2.215]
[1768074364436,0.96492223,915.15,911.88,2.215]
[1768074364739,0.96492223,915.14,911.88,2.215]
[1768074364941,0.96492223,915.13,911.88,2.215]
[1768074365139,0.96492223,915.12,911.88,2.215]
[1768074365337,0.96492223,915.11,911.88,2.215]
[1768074365640,0.96492223,915.1,911.88,2.215]
[1768074365842,0.96492223,915.09,911.88,2.215]
[1768074366037,0.96492223,915.08,911.88,2.215]
[1768074366340,0.96492223,915.07,911.88,2.215]
[1768074366640,0.96492223,915.06,911.88,2.215]
[1768074366940,0.96492223,915.05,911.88,2.215]
[1768074367137,0.96492223,915.04,911.88,2.215]
[1768074367337,0.96492223,915.03,911.88,2.215]
[1768074367538,0.96492223,915.02,911.88,2.215]
[1768074367736,0.96492223,915.01,911.88,2.215]
[1768074367941,0.96492223,915.0,911.88,2.215]
[1768074368140,0.96492223,914.99,911.88,2.215]
[1768074368341,0.96492223,914.98,911.88,2.215]
[1768074368542,0.96492223,914.97,911.88,2.215]
[1768074368742,0.96492223,914.96,911.88,2.215]
[1768074369040,0.96492223,914.95,911.88,2.215]
[1768074369339,0.96492223,914.94,911.88,2.215]
[1768074369639,0.96492223,914.93,911.88,2.215]
[1768074369838,0.96492223,914.92,911.88,2.215]
[1768074370038,0.96492223,914.91,911.88,2.215]
[1768074370239,0.96492223,914.9,911.88,2.215]
[1768074370442,0.96492223,914.89,911.88,2.215]
[1768074370642,0.96492223,914.88,911.88,2.215]
[1768074370842,0.96492223,914.87,911.88,2.215]
[1768074371140,0.96492223,914.86,911.88,2.215]
[1768074371342,0.96492223,914.85,911.88,2.215]
[1768074371640,0.96492223,914.84,911.88,2.215]
[1768074371844,0.96492223,914.83,911.88,2.215]
[1768074372044,0.96492223,914.82,911.88,2.215]
[1768074372244,0.96492223,914.81,911.88,2.215]
[1768074372542,0.96492223,914.8,911.88,2.215]
[1768074372744,0.96492223,914.79,911.88,2.215]
[1768074372944,0.96492223,914.78,911.88,2.215]
[1768074373145,0.96492223,914.77,911.88,2.215]
[1768074373345,0.96492223,914.76,911.88,2.215]
[1768074373544,0.96492223,914.75,911.88,2.215]
[1768074373742,0.96492223,914.74,911.88,2.215]
[1768074373946,0.96492223,914.73,911.88,2.215]
[1768074374145,0.96492223,914.72,911.88,2.215]
[1768074374343,0.96492223,914.71,911.88,2.215]
[1768074374547,0.96492223,914.7,911.88,2.215]
[1768074374748,0.96492223,914.69,911.88,2.215]
[1768074375043,0.96492223,914.68,911.88,2.215]
[1768074375247,0.96492223,914.67,911.88,2.215]
[1768074375443,0.96492223,914.66,911.88,2.215]
[1768074375645,0.96492223,914.65,911.88,2.215]
[1768074375849,0.96492223,914.64,911.88,2.215]
[1768074376145,0.96492223,914.63,911.88,2.215]
[1768074376345,0.96492223,914.62,911.88,2.215]
[1768074376549,0.96492223,914.61,911.88,2.215]
[1768074376749,0.96492223,914.6,912.13,1.60489222]
[1768074376949,0.96492223,914.59,912.13,1.60489222]
[1768074377146,0.96492223,914.58,912.13,1.60489222]
[1768074377351,0.96492223,914.57,912.12,1.60489222]
[1768074377553,0.96492223,914.56,912.12,1.60489222]
[1768074377851,0.96492223,914.55,912.12,1.60489222]
[1768074378051,0.96492223,914.54,912.12,1.60489222]
[1768074378251,0.96492223,914.53,912.13,1.60489222]
[1768074378551,0.96492223,914.52,912.13,1.60489222]
[1768074378751,0.96492223,914.51,912.13,1.60489222]
[1768074379047,0.96492223,914.5,912.13,1.60489222]
[1768074379247,0.96492223,914.49,912.13,1.60489222]
[1768074379551,0.96492223,914.48,912.13,1.60489222]
[1768074379746,0.96492223,914.47,912.09,1.60489222]
[1768074379951,0.96492223,914.46,912.09,1.60489222]
[1768074380151,0.96492223,914.45,912.09,1.60489222]
[1768074380349,0.96492223,914.44,912.09,1.60489222]
[1768074380548,0.96492223,914.43,912.09,1.60489222]
[1768074380849,0.96492223,914.42,912.09,1.60489222]
[1768074381052,0.96492223,914.41,912.09,1.60489222]
[1768074381351,0.96492223,914.4,912.08,1.60489222]
[1768074381552,0.96492223,914.39,912.08,1.60489222]
[1768074381752,0.96492223,914.38,912.08,1.60489222]
[1768074382052,5.91835862,915.66,912.08,1.60489222]
[1768074382252,0.95607624,915.65,912.08,1.60489222]
[1768074382451,0.95607624,915.64,912.08,1.60489222]
[1768074382648,0.95607624,915.63,912.08,1.60489222]
[1768074382951,0.95607624,915.62,912.08,1.60489222]
[1768074383152,0.95607624,915.61,912.08,1.60489222]
[1768074383352,0.95607624,915.6,912.09,1.60489222]
[1768074383652,0.95607624,915.59,912.09,1.60489222]
[1768074383852,0.95607624,915.58,912.09,1.60489222]
[1768074384152,0.95607624,915.57,912.09,1.60489222]
[1768074384349,0.95607624,915.56,912.09,1.60489222]
[1768074384553,0.95607624,915.55,912.09,1.60489222]
[1768074384850,0.95607624,915.54,912.09,1.60489222]
[1768074385048,0.95607624,915.53,912.09,1.60489222]
[1768074385253,0.95607624,915.52,912.1,1.60489222]
[1768074385448,0.95607624,915.51,912.1,1.60489222]
[1768074385750,0.95607624,915.5,912.1,1.60489222]
[1768074385950,0.95607624,915.49,912.1,1.60489222]
[1768074386150,0.95607624,915.48,912.1,1.60489222]
[1768074386352,0.95607624,915.47,912.11,1.60489222]
[1768074386546,0.95607624,915.46,912.11,1.60489222]
[1768074386749,0.95607624,915.45,912.27,1.06949398]
[1768074387052,0.95607624,915.44,912.27,1.06949398]
[1768074387348,0.95607624,915.43,912.28,1.06949398]
[1768074387652,0.95607624,915.42,912.31,1.06949398]
[1768074387852,5.91835862,915.66,911.88,2.215]
[1768074387853,0.95607624,915.41,912.49,1.06949398]
[1768074388052,0.95607624,915.4,912.56,1.06949398]
[1768074388248,0.95607624,915.39,912.56,1.06949398]
[1768074388453,0.95607624,915.38,912.61,1.06949398]
[1768074388648,0.95607624,915.37,912.61,1.06949398]
[1768074388954,0.95607624,915.36,912.61,1.06949398]
[1768074389253,0.95607624,915.35,912.62,1.06949398]
[1768074389453,0.95607624,915.34,912.63,1.06949398]
[1768074389652,0.95607624,915.33,912.63,1.06949398]
[1768074389851,0.95607624,915.32,912.63,1.06949398]
[1768074390053,0.95607624,915.31,912.63,1.06949398]
[1768074390255,0.95607624,915.3,912.63,1.06949398]
[1768074390451,0.95607624,915.29,912.66,1.06949398]
[1768074390655,0.95607624,915.28,912.66,1.06949398]
[1768074390956,0.95607624,915.27,912.66,1.06949398]
[1768074391151,0.95607624,915.26,912.66,1.06949398]
[1768074391354,5.91835862,915.66,912.69,1.06949398]
[1768074391355,0.95607624,915.25,912.69,1.06949398]
[1768074391552,0.95607624,915.24,912.69,1.06949398]
[1768074391756,0.95607624,915.23,912.69,1.06949398]
[1768074391957,0.95607624,915.22,912.69,1.06949398]
[1768074392260,0.95607624,915.21,912.71,1.06949398]
[1768074392555,5.91835862,915.66,912.72,1.06949398]
[1768074392858,0.96021445,915.65,912.72,1.06949398]
[1768074393054,0.96021445,915.64,912.72,1.06949398]
[1768074393255,0.96021445,915.63,912.75,1.06949398]
[1768074393454,0.96021445,915.62,912.75,1.06949398]
[1768074393652,0.96021445,915.61,912.75,1.06949398]
[1768074393858,0.96021445,915.6,912.75,1.06949398]
[1768074394059,0.96021445,915.59,912.75,1.06949398]
[1768074394258,0.96021445,915.58,912.78,1.06949398]
[1768074394456,0.96021445,915.57,912.78,1.06949398]
[1768074394656,0.96021445,915.56,912.78,1.06949398]
[1768074394854,0.96021445,915.55,912.78,1.06949398]
[1768074395054,5.91835862,915.66,912.78,1.06949398]
[1768074395055,0.96021445,915.54,912.78,1.06949398]
[1768074395255,0.96021445,915.53,912.81,1.06949398]
[1768074395459,0.96021445,915.52,912.82,1.06949398]
[1768074395659,0.96021445,915.51,912.82,1.06949398]
[1768074395855,0.96021445,915.5,912.82,1.06949398]
[1768074396054,0.96021445,915.49,912.82,1.06949398]
[1768074396258,0.96021445,915.48,912.86,1.06949398]
[1768074396457,0.96021445,915.47,912.87,1.06949398]
[1768074396655,0.96021445,915.46,912.87,1.06949398]
[1768074396855,0.96021445,915.45,912.87,1.06949398]
[1768074397057,0.96021445,915.44,912.87,1.06949398]
[1768074397255,0.96021445,915.43,912.91,1.06949398]
[1768074397454,0.96021445,915.42,912.92,1.06949398]
[1768074397659,0.96021445,915.41,912.92,1.06949398]
[1768074397958,0.96021445,915.4,912.92,1.06949398]
[1768074398156,0.96021445,915.39,912.85,1.06949398]
[1768074398356,0.96021445,915.38,912.92,1.06949398]
[1768074398555,0.96021445,915.37,912.92,1.06949398]
[1768074398760,0.96021445,915.36,912.92,1.06949398]
[1768074399061,0.96021445,915.35,912.92,1.06949398]
[1768074399260,0.96021445,915.35,912.75,1.60489222]
[1768074399261,0.96021445,915.34,912.99,1.06949398]
[1768074399560,0.96021445,915.33,912.99,1.06949398]
[1768074399760,0.96021445,915.32,912.99,1.06949398]
[1768074399963,0.96021445,915.31,912.99,1.06949398]
[1768074400161,0.96021445,915.3,912.99,1.06949398]
[1768074400362,0.96021445,915.29,913.28,1.06949398]
[1768074400562,0.96021445,915.28,913.28,9.07056478]
[1768074400858,0.96021445,915.27,913.28,10.14005876]
[1768074401061,0.96021445,915.26,913.28,10.14005876]
[1768074401259,0.96021445,915.25,913.42,1.06949398]
[1768074401463,0.96021445,915.24,913.42,1.06949398]
[1768074401758,0.96021445,915.23,913.42,1.06949398]
[1768074402062,0.96021445,915.22,913.42,1.06949398]
[1768074402264,0.96021445,915.21,913.42,1.06949398]
[1768074402464,5.91835862,915.66,913.41,1.06949398]
[1768074402465,0.96021445,915.2,913.41,1.06949398]
[1768074402665,0.96021445,915.19,913.41,1.06949398]
[1768074402866,0.96021445,915.18,913.41,1.06949398]
[1768074403065,0.96021445,915.17,913.41,1.06949398]
[1768074403264,0.96021445,915.16,913.4,1.06949398]
[1768074403466,0.96021445,915.15,913.4,1.06949398]
[1768074403664,0.96021445,915.14,913.4,1.06949398]
[1768074403864,0.96021445,915.13,913.4,1.06949398]
[1768074404065,0.96021445,915.12,913.4,1.06949398]
[1768074404262,0.96021445,915.11,913.39,1.06949398]
[1768074404466,0.96021445,915.1,913.39,1.06949398]
[1768074404760,0.96021445,915.09,913.39,1.06949398]
[1768074405065,0.96021445,915.08,913.39,1.06949398]
[1768074405265,0.96021445,915.07,913.39,1.06949398]
[1768074405461,0.96021445,915.06,913.38,1.06949398]
[1768074405661,0.96021445,915.05,913.38,1.06949398]
[1768074405862,0.96021445,915.04,913.38,1.06949398]
[1768074406060,0.96021445,915.03,913.38,1.06949398]
[1768074406265,0.96021445,915.02,913.38,1.06949398]
[1768074406466,0.96021445,915.01,913.38,1.06949398]
[1768074406665,0.96021445,915.0,913.38,1.06949398]
[1768074406864,0.96021445,914.99,913.38,1.06949398]
[1768074407162,0.96021445,914.98,913.38,1.06949398]
[1768074407463,0.96021445,914.97,913.37,1.06949398]
[1768074407661,0.96021445,914.96,913.37,1.06949398]
[1768074407865,0.96021445,914.95,913.37,1.06949398]
[1768074408162,0.96021445,914.94,913.38,1.06949398]
[1768074408360,0.96021445,914.93,913.38,1.06949398]
[1768074408665,0.96021445,914.92,913.38,1.06949398]
[1768074408865,0.96021445,914.91,913.38,1.06949398]
[1768074409066,0.96021445,914.9,913.38,1.06949398]
[1768074409361,0.96021445,914.89,913.37,1.06949398]
[1768074409566,0.96021445,914.88,913.37,1.06949398]
[1768074409765,0.96021445,914.87,913.37,1.06949398]
[1768074409962,0.96021445,914.86,913.37,1.06949398]
[1768074410164,0.96021445,914.85,913.37,1.06949398]
[1768074410466,0.96021445,914.84,913.37,1.06949398]
[1768074410666,0.96021445,914.83,913.37,1.06949398]
[1768074410964,0.96021445,914.82,913.37,1.06949398]
[1768074411167,0.96021445,914.81,913.37,1.06949398]
[1768074411467,0.96021445,914.8,913.37,1.06949398]
[1768074411663,0.96021445,914.79,913.37,1.06949398]
[1768074411869,0.96021445,914.78,913.37,1.06949398]
[1768074412164,0.96021445,914.77,913.38,1.06949398]
[1768074412368,0.96021445,914.76,913.38,1.06949398]
[1768074412568,0.96021445,914.75,913.38,1.06949398]
[1768074412769,0.96021445,914.74,913.38,1.06949398]
[1768074413068,0.96021445,914.73,913.38,1.06949398]
[1768074413369,0.96021445,914.72,913.38,1.06949398]
[1768074413570,0.96021445,914.71,913.38,1.06949398]
[1768074413769,0.96021445,914.7,913.38,1.06949398]
[1768074413970,0.96021445,914.69,913.38,1.06949398]
[1768074414171,0.96021445,914.68,913.38,1.06949398]
[1768074414363,0.96021445,914.67,913.38,1.06949398]
[1768074414564,0.96021445,914.66,913.38,1.06949398]
[1768074414769,0.96021445,914.65,913.38,1.06949398]
[1768074414969,0.96021445,914.64,913.38,1.06949398]
[1768074415167,0.96021445,914.63,913.38,1.06949398]
[1768074415367,0.96021445,914.62,913.39,1.06949398]
[1768074415569,0.96021445,914.61,913.39,1.06949398]
[1768074415868,0.96021445,914.6,913.39,1.06949398]
[1768074416168,0.96021445,914.59,913.39,1.06949398]
[1768074416465,0.96021445,914.58,913.41,1.06949398]
[1768074416662,0.96021445,914.57,913.57,0.81538041]
[1768074416867,0.96021445,914.56,913.57,0.81538041]
[1768074417165,0.96021445,914.55,913.57,0.81538041]
[1768074417464,0.96021445,914.54,913.57,0.81538041]
[1768074417666,5.91835862,915.66,913.57,0.81538041]
[1768074417865,0.9740425,915.65,913.57,0.81538041]
[1768074418066,0.9740425,915.64,913.57,0.81538041]
[1768074418269,0.9740425,915.63,913.56,0.81538041]
[1768074418469,0.9740425,915.62,913.56,0.81538041]
[1768074418667,0.9740425,915.61,913.56,0.81538041]
[1768074418968,0.9740425,915.6,913.56,0.81538041]
[1768074419167,0.9740425,915.59,913.56,0.81538041]
[1768074419370,0.9740425,915.58,913.56,0.81538041]
[1768074419666,0.9740425,915.57,913.56,0.81538041]
[1768074419870,0.9740425,915.56,913.64,0.81538041]
[1768074420170,0.9740425,915.55,913.62,0.81538041]
[1768074420470,0.9740425,915.54,913.63,0.81538041]
[1768074420671,5.91835862,915.66,913.63,0.81538041]
[1768074420672,0.9740425,915.53,913.63,0.81538041]
[1768074420970,0.9740425,915.52,913.63,0.81538041]
[1768074421169,0.9740425,915.51,913.63,0.81538041]
[1768074421472,0.9740425,915.5,913.63,0.81538041]
[1768074421672,0.9740425,915.49,913.63,0.81538041]
[1768074421870,0.9740425,915.48,913.63,0.81538041]
[1768074422069,0.9740425,915.47,913.64,1.689]
[1768074422269,0.9740425,915.46,913.64,1.689]
[1768074422474,0.9740425,915.45,913.64,1.689]
[1768074422674,0.9740425,915.44,913.64,1.689]
[1768074422974,0.9740425,915.43,913.64,1.689]
[1768074423274,0.9740425,915.42,913.64,1.689]
[1768074423474,0.9740425,915.41,913.64,1.689]
[1768074423670,0.9740425,915.4,913.64,1.689]
[1768074423973,0.9740425,915.39,913.64,1.689]
[1768074424169,0.9740425,915.38,913.64,1.689]
[1768074424370,0.9740425,915.37,913.64,1.689]
[1768074424572,0.9740425,915.36,913.64,1.689]
[1768074424776,0.9740425,915.35,913.64,1.689]
[1768074424976,0.9740425,915.34,913.64,1.689]
[1768074425177,0.9740425,915.33,913.64,1.689]
[1768074425474,0.9740425,915.32,913.68,0.81538041]
[1768074425777,0.9740425,915.31,913.66,0.81538041]
[1768074425978,0.9745327,915.3,913.66,0.81538041]
[1768074426175,0.9745327,915.29,913.66,0.81538041]
[1768074426379,0.9745327,915.28,913.67,0.81538041]
[1768074426675,0.9745327,915.27,913.71,0.81538041]
[1768074426976,0.9745327,915.26,913.73,0.81538041]
[1768074427174,0.9745327,915.25,913.73,0.81538041]
[1768074427475,0.9745327,915.24,913.64,1.689]
[1768074427679,0.9745327,915.23,913.64,1.689]
[1768074427876,0.9745327,915.22,913.64,1.689]
[1768074428076,0.9745327,915.21,913.64,1.689]
[1768074428276,0.9745327,915.2,913.64,1.689]
[1768074428478,0.9745327,915.19,913.64,1.689]
[1768074428677,0.9745327,915.18,913.64,1.689]
[1768074428880,0.9745327,915.17,913.64,1.689]
[1768074429077,0.9745327,915.16,913.64,1.689]
[1768074429380,5.91835862,915.66,913.64,1.689]
[1768074429381,0.9745327,915.15,913.64,1.689]
[1768074429581,0.9745327,915.14,913.64,1.689]
[1768074429877,0.9745327,915.13,913.64,1.689]
[1768074430182,0.9745327,915.12,913.64,1.689]
[1768074430484,0.9745327,915.11,913.64,1.689]
[1768074430780,0.9745327,915.1,913.64,1.689]
[1768074430985,0.9745327,915.09,913.64,1.689]
[1768074431187,0.9745327,915.08,913.64,1.689]
[1768074431384,0.9745327,915.07,913.64,1.689]
[1768074431583,0.9745327,915.06,913.64,1.689]
[1768074431882,0.9745327,915.05,913.64,1.689]
[1768074432089,0.9745327,915.04,913.64,1.689]
[1768074432284,0.9745327,915.03,913.64,1.689]
[1768074432484,0.9745327,915.02,913.64,1.689]
[1768074432687,0.9745327,915.01,913.64,1.689]
[1768074432890,0.9745327,915.0,913.64,1.689]
[1768074433089,0.9745327,914.99,913.64,1.689]
[1768074433289,0.9745327,914.98,913.64,1.689]
[1768074433590,0.9745327,914.97,913.64,1.689]
[1768074433786,0.9745327,914.96,913.64,1.689]
[1768074434090,0.9745327,914.95,913.64,1.689]
[1768074434291,0.9745327,914.94,913.64,1.689]
[1768074434591,0.9745327,914.93,913.64,1.689]
[1768074434891,0.9745327,914.92,913.64,1.689]
[1768074435088,0.9745327,914.91,913.64,1.689]
[1768074435392,0.9745327,914.9,913.64,1.689]
[1768074435692,0.9745327,914.89,913.64,1.689]
[1768074435890,0.9745327,914.88,913.64,1.689]
[1768074436088,0.9745327,914.87,913.64,1.689]
[1768074436295,0.9745327,914.86,913.64,1.689]
[1768074436495,0.9745327,914.85,913.64,1.689]
[1768074436695,0.9745327,914.84,913.64,1.689]
[1768074436893,0.9745327,914.83,913.64,1.689]
[1768074437096,0.9745327,914.82,913.64,1.689]
[1768074437296,0.9745327,914.81,913.64,1.689]
[1768074437493,0.9745327,914.8,913.64,1.689]
[1768074437697,0.9745327,914.79,913.64,1.689]
[1768074437992,0.9745327,914.78,913.64,1.689]
[1768074438192,0.9745327,914.77,913.64,1.689]
[1768074438397,0.9745327,914.76,913.64,1.689]
[1768074438594,0.9745327,914.75,913.64,1.689]
[1768074438893,0.9745327,914.74,913.64,1.689]
[1768074439194,0.9745327,914.73,913.64,1.689]
[1768074439397,0.9745327,914.72,913.64,1.689]
[1768074439594,0.9745327,914.71,913.64,1.689]
[1768074439800,0.9745327,914.7,913.64,1.689]
[1768074439994,2.72679797,915.35,913.64,1.689]
[1768074439995,0.9745327,914.69,913.64,1.689]
[1768074440299,0.9745327,914.68,913.64,1.689]
[1768074440499,0.9745327,914.67,913.64,1.689]
[1768074440795,0.9745327,914.66,913.64,1.689]
[1768074441005,0.9745327,914.65,913.64,1.689]
[1768074441300,0.9745327,914.64,913.64,1.689]
[1768074441604,0.9745327,914.63,913.64,1.689]
[1768074441800,0.9745327,914.62,913.64,1.689]
[1768074442005,0.9745327,914.61,913.64,1.689]
[1768074442206,0.9745327,914.6,913.64,1.689]
[1768074442405,0.9745327,914.59,913.64,1.689]
[1768074442602,0.9745327,914.58,913.64,1.689]
[1768074442902,0.9745327,914.57,913.64,1.689]
[1768074443101,0.9745327,914.56,913.64,1.689]
[1768074443301,0.9745327,914.55,913.64,1.689]
[1768074443499,0.9745327,914.54,913.64,1.689]
[1768074443704,0.9745327,914.53,913.64,1.689]
[1768074443902,0.9745327,914.52,913.64,1.689]
[1768074444202,0.9745327,914.51,913.64,1.689]
[1768074444405,0.9745327,914.5,913.64,1.689]
[1768074444606,0.9745327,914.49,913.64,1.689]
[1768074444806,0.9745327,914.48,913.64,1.689]
[1768074445006,0.9745327,914.47,913.64,1.689]
[1768074445204,0.9745327,914.46,913.64,1.689]
[1768074445506,0.9745327,914.45,913.64,1.689]
[1768074445707,0.9745327,914.44,913.64,1.689]
[1768074445907,0.9745327,914.43,913.64,1.689]
[1768074446104,0.9745327,914.42,913.64,1.689]
[1768074446407,0.9745327,914.41,913.64,1.689]
[1768074446606,0.9745327,914.4,913.64,1.689]
[1768074446803,0.9745327,914.39,913.64,1.689]
[1768074447008,0.9745327,914.38,913.64,1.689]
[1768074447207,0.9745327,914.37,913.64,1.689]
[1768074447410,0.9745327,914.36,913.64,1.689]
[1768074447710,0.9745327,914.35,913.64,1.689]
[1768074447906,0.9745327,914.34,913.64,1.689]
[1768074448105,0.9745327,914.33,913.64,1.689]
[1768074448310,0.9745327,914.32,913.64,1.689]
[1768074448610,0.9745327,914.31,913.64,1.689]
[1768074448807,0.9745327,914.3,913.64,1.689]
[1768074449011,0.9745327,914.29,913.64,1.689]
[1768074449311,0.9745327,914.28,913.64,1.689]
[1768074449507,0.9745327,914.27,913.64,1.689]
[1768074449712,0.9745327,914.26,913.64,1.689]
[1768074450013,0.9745327,914.25,913.64,1.689]
[1768074450212,0.9745327,914.24,913.64,1.689]
[1768074450412,0.9745327,914.23,913.64,1.689]
[1768074450612,0.9745327,914.22,913.64,1.689]
[1768074450909,0.9745327,914.21,913.64,1.689]
[1768074451109,0.9745327,914.2,913.64,1.689]
[1768074451308,0.9745327,914.19,913.64,1.689]
[1768074451507,0.9745327,914.18,913.64,1.689]
[1768074451808,0.9745327,914.17,913.64,1.689]
[1768074452011,0.9745327,914.16,913.64,1.689]
[1768074452212,0.9745327,914.15,913.64,1.689]
[1768074452409,0.9745327,914.14,913.64,1.689]
[1768074452610,0.9745327,914.13,913.64,1.689]
[1768074452911,0.9745327,914.12,913.64,1.689]
[1768074453108,0.9745327,914.11,913.64,1.689]
[1768074453308,0.9745327,914.1,913.64,1.689]
[1768074453613,0.9745327,914.09,913.64,1.689]
[1768074453913,0.9745327,914.08,913.64,1.689]
[1768074454111,0.9745327,914.07,913.64,1.689]
[1768074454314,0.9745327,914.06,913.64,1.689]
[1768074454516,0.9745327,914.05,913.64,1.689]
[1768074454810,0.9745327,914.04,913.64,1.689]
[1768074455015,2.72679797,915.19,913.64,1.689]
[1768074455016,0.9745327,914.03,913.64,1.689]
[1768074455311,0.9745327,914.02,913.64,1.689]
[1768074455613,0.9745327,914.01,913.64,1.689]
[1768074455810,0.9745327,914.0,913.64,1.689]
[1768074456111,0.9745327,913.99,913.64,1.689]
[1768074456312,0.9745327,913.98,913.64,1.689]
[1768074456515,0.9745327,913.97,913.64,1.689]
[1768074456716,0.9745327,913.96,913.64,1.689]
[1768074456916,0.9745327,913.95,913.64,1.689]
[1768074457114,0.9745327,913.94,913.64,1.689]
[1768074457318,0.9745327,913.93,913.64,1.689]
[1768074457614,0.9745327,913.92,913.64,1.689]
[1768074457820,0.9745327,913.91,913.64,1.689]
[1768074458117,0.9745327,913.9,913.64,1.689]
[1768074458318,0.9745327,913.89,913.64,1.689]
[1768074458515,0.9745327,913.88,913.64,1.689]
[1768074458818,0.9745327,913.87,913.64,1.689]
[1768074459014,0.9745327,913.86,913.64,1.689]
[1768074459218,0.9745327,913.85,913.64,1.689]
[1768074459418,0.9745327,913.84,913.64,1.689]
[1768074459618,0.9745327,913.83,913.64,1.689]
[1768074459814,0.9745327,913.82,913.64,1.689]
[1768074460021,0.9745327,913.81,913.64,1.689]
[1768074460320,0.9745327,913.8,913.64,1.689]